Cogmind - Beta 15 @@@ ROGUE MODE // 2025.05.08 @ 00:12:33 Player: AnotherZach Result: Destroyed by Proton Bomb Trap Performance ------------- Evolutions (5) 2500 Regions Visited (17) 3400 Robots Destroyed (270) 1350 Value Destroyed (8842) 8842 Prototype IDs (20) 400 Alien Tech Used (0) 0 Bonus (2124) 2124 TOTAL SCORE: 18616 Bonus ------- High Alert Combat Kills 895 Follower Combat Kills 1290 Met Data Miner 300 Friendly Fire -361 Cogmind --------- Core Integrity 0/1000 Matter 300/300 Energy 55/100 System Corruption 30% Temperature Cool (0) Movement Core (50) Location -5/Factory Parts ------- > --- POWER (2) -------- (None) > --- PROPULSION (6) --- (None) > --- UTILITY (5) ------ Improved Signal Interpreter > --- WEAPON (4) ------- (None) > --- INVENTORY (5) ---- Terrain Scanner Armor Integrity Analyzer Field Recycling Unit (0) Variable Charge Gun Cooled Plasma Cannon Peak State ------------ > --- POWER ------------ Angular Momentum Engine Angular Momentum Engine > --- PROPULSION ------- Armored Huge Wheel Armored Huge Wheel > --- UTILITY ---------- Improved Cooling System Huge Storage Unit Launcher Guidance Computer Medium Reactive Plating Makeshift Ablative Armor > --- WEAPON ----------- Precision Shock Rifle Heavy Beamcaster Antimatter Cannon Thermoblaster > --- INVENTORY -------- Angular Momentum Engine Carbon-fiber Leg Carbon-fiber Leg Armored Leg Armored Leg Armored Leg Improved VSS Leg Improved Cooling System High-capacity Storage Unit Large Matter Pod Improved Signal Interpreter Transmission Jammer ECM Suite Medium Reactive Plating Makeshift Ablative Armor Authchip [Propulsion] High-powered Tractor Beam Trap Extractor Heavy EM Shotgun Heavy Beamcaster Enhanced Autogun Improved Proton Missile Launcher Thermoblaster Sapper Charge Sapper Charge [Rating: 78] Favorites ----------- Power Micro Nuclear Core Engine Improved Deuterium Engine Power Core Micro Nuclear Core Reactor Antimatter Reactor Propulsion Armored Huge Wheel Treads Light Treads Leg Aluminum Leg Wheel Armored Huge Wheel Hover Unit Antigrav System Flight Unit Improved VTOL Module Utility Improved Cooling System Device Improved Cooling System Storage Huge Storage Unit Processor Improved Signal Interpreter Hackware Hacking Suite Protection Medium Reactive Plating Weapon Precision Beam Rifle Energy Gun Precision Beam Rifle Energy Cannon Advanced Beam Cannon Ballistic Gun Enhanced Autogun Ballistic Cannon Gauss Cannon Launcher Heavy Missile Launcher Special Melee Weapon Improved Datajack Build | -11 -10 -10 -9 -9 -8 -8 -7 -7 -7 -7 -7 -7 -6 -6 -6 -6 -5 ------- Run | Yrd Mat Min Mat Min Mat Sto Fac Was Fac Low Low Dat Pro Fac Was Fac Fac Slots Evolved 10 | . . . 2 . 2 . 2 . . . . . . 2 . . 2 Power 1 | . . . . . . . . . . . . . . 1 . . . Propulsion 4 | . . . 1 . 1 . . . . . . . . . . . 2 Utility 3 | . . . 1 . . . 1 . . . . . . 1 . . . Weapon 2 | . . . . . 1 . 1 . . . . . . . . . . Parts Attached 231 | 7 7 4 26 4 10 18 38 7 9 1 1 1 6 36 12 17 27 Power 25 | 1 1 1 2 1 . 2 3 . 1 . . . 1 6 3 2 1 Engine 14 | 1 1 1 2 1 . 1 1 . 1 . . . . 5 . . . Core 8 | . . . . . . 1 2 . . . . . 1 1 1 1 1 Reactor 3 | . . . . . . . . . . . . . . . 2 1 . Propulsion 69 | 2 . 2 13 2 4 5 13 1 . . 1 . . 11 1 3 11 Treads 20 | 2 . . 3 . 4 4 4 . . . . . . . 1 1 1 Leg 28 | . . 2 9 2 . . 3 . . . . . . 7 . . 5 Wheel 15 | . . . 1 . . . 6 1 . . 1 . . 4 . 1 1 Hover 3 | . . . . . . . . . . . . . . . . . 3 Flight 3 | . . . . . . 1 . . . . . . . . . 1 1 Utility 65 | 2 1 1 5 1 2 6 11 1 3 . . . 2 12 3 6 9 Device 25 | 1 1 . 3 . 1 2 6 . 1 . . . . 2 1 4 3 Storage 6 | 1 . 1 1 . . . 2 . . . . . . . 1 . . Processor 13 | . . . . . 1 1 2 . . . . . . 5 . 1 3 Hackware 3 | . . . . . . . . . 1 . . . . 1 . . 1 Protection 18 | . . . 1 1 . 3 1 1 1 . . . 2 4 1 1 2 Artifact . | . . . . . . . . . . . . . . . . . . Weapon 72 | 2 5 . 6 . 4 5 11 5 5 1 . 1 3 7 5 6 6 Energy Gun 22 | 1 2 . 3 . . 1 5 . 2 . . . 2 2 3 . 1 Energy Cannon 11 | . 1 . 2 . 3 . . . . . . . . . . 3 2 Ballistic Gun 18 | 1 1 . 1 . 1 3 3 1 1 1 . 1 . . 1 2 1 Ballistic Cannon 9 | . . . . . . . 1 1 2 . . . . 1 1 1 2 Launcher 10 | . 1 . . . . 1 2 3 . . . . 1 2 . . . Special Weapon . | . . . . . . . . . . . . . . . . . . Impact Weapon . | . . . . . . . . . . . . . . . . . . Slashing Weapon . | . . . . . . . . . . . . . . . . . . Piercing Weapon . | . . . . . . . . . . . . . . . . . . Special Melee Weapon 2 | . . . . . . . . . . . . . . 2 . . . Unidentified Prototypes 12 | . . . 2 . 1 2 2 . 1 . . . . 2 . 2 . Corrupted Parts 2 | . . . . . . . . . . . . . . . . . 2 System Corruption 14 | . . . . . . . . . . . . . . . . . 14 Parts Lost 75 | . . 6 2 . . 18 2 2 . . . . 4 18 . 5 18 Power 7 | . . 1 . . . 2 . . . . . . . 2 . 1 1 Propulsion 25 | . . 3 1 . . 7 1 1 . . . . . 3 . 1 8 Utility 17 | . . . . . . 4 1 1 . . . . . 5 . . 6 Weapon 26 | . . 2 1 . . 5 . . . . . . 4 8 . 3 3 Highest Loss Streak 16 | . . 6 1 . . 16 1 2 . . . . 4 6 . 5 14 To Critical Strikes 2 | . . . 1 . . . . . . . . . . . . 1 . Average Backups 17 | 2 7 8 12 16 19 16 18 20 23 22 22 23 22 15 14 18 18 Power 1 | . 1 . . 1 1 . 2 2 1 1 1 1 1 . 1 . . Propulsion 3 | 1 3 2 4 7 8 5 2 2 2 2 1 1 1 2 3 4 4 Utility 7 | . 1 3 5 5 6 6 6 8 9 10 11 12 12 8 5 8 9 Weapon 5 | . 1 1 2 3 3 3 8 7 9 9 9 9 7 3 3 4 3 Tool/Special . | . . . . . . . . . . . . . . . . . . Unused Backups 82 | . 4 1 7 . 8 2 19 . 7 . . . 1 13 3 4 13 Power 5 | . . . . . . . 1 . 1 . . . . 1 . . 2 Propulsion 21 | . 3 . 2 . 2 . 6 . . . . . . 3 . 2 3 Utility 38 | . . . 1 . 5 2 9 . 4 . . . 1 7 2 1 6 Weapon 17 | . 1 1 4 . 1 . 2 . 2 . . . . 2 1 1 2 Tool/Special 1 | . . . . . . . 1 . . . . . . . . . . Average Slot Usage (%) 86 | . 99 87 91 100 98 87 93 75 83 83 84 56 83 71 79 84 86 Engine 5 | . 14 12 11 11 9 5 4 . 4 7 7 7 6 6 . . . Core 2 | . . . . . . 1 2 7 2 . . . . 1 3 4 6 Reactor 1 | . . . . . . . . . . . . . . . 6 6 3 Treads 5 | . 28 22 2 . 17 29 7 . . . . . . . 2 5 3 Leg 7 | . . 2 26 33 18 1 11 . . . . . . 6 . . 13 Wheel 8 | . . . 2 . . . 9 15 15 15 15 15 15 9 9 6 7 Device 10 | . 14 14 17 11 8 8 13 6 7 7 7 7 7 4 5 14 8 Storage 7 | . 14 11 8 11 9 8 6 7 7 7 7 7 7 4 5 6 4 Processor 6 | . . . . . 7 3 7 9 7 7 7 7 7 8 15 6 7 Protection 3 | . . . 2 11 1 3 . 1 6 6 7 7 6 8 3 3 1 Energy Gun 9 | . 14 11 8 . . . 19 7 12 15 15 1 8 8 10 8 1 Energy Cannon 4 | . 1 . 2 22 25 18 . . . . . . . . . 7 6 Ballistic Gun 4 | . 6 . 7 . . 5 5 1 7 . . . 6 2 4 4 5 Ballistic Cannon 4 | . . . . . . . 1 1 8 14 15 2 10 3 3 3 5 Launcher 1 | . 5 11 . . . . . 14 . . . . 2 2 . . . Peak Build Rating 78 | 9 10 9 21 23 31 31 56 54 58 58 57 54 65 78 76 76 74 Average Rating 46 | 6 8 7 14 21 28 25 42 49 55 56 56 41 56 57 67 70 67 On Entrance 38 | . 9 9 3 21 23 27 19 55 53 58 56 56 54 65 33 75 69 Naked Turns . | . . . . . . . . . . . . . . . . . . Heaviest Build 172 | 15 17 32 62 62 66 73 109 112 130 130 130 130 132 172 98 105 96 Greatest Support 109 | 40 40 40 40 39 83 85 60 56 56 56 56 56 56 68 56 70 109 Greatest Overweight (x) 5 | . . 1 2 1 1 2 5 1 2 2 2 2 2 5 3 3 3 Average Overweight (x) 1 | . . . . 1 . . 3 1 1 1 2 1 1 . 1 2 1 Largest Inventory Capacity 25 | 8 8 15 20 20 20 20 25 25 25 25 25 25 25 25 20 20 20 Average Capacity 20 | 6 8 11 13 20 20 18 22 25 25 25 25 25 25 18 19 20 19 Most Carried 25 | 7 8 10 15 20 20 20 25 25 25 25 25 24 25 25 20 20 20 Average Carried 18 | 2 7 8 12 16 19 16 19 22 24 24 24 23 23 17 17 19 19 Final Capacity 25 | 8 8 5 20 20 20 5 25 25 25 25 25 25 25 5 20 20 5 Final Carried 25 | 7 8 5 15 20 20 5 25 25 25 24 24 23 25 5 20 20 5 Class Distribution -------------------- 21% | Tank 20% | Mutant 18% | Scavenger-Gunner 13% | Scavenger-Tank 11% | Scavenger-Skirmisher 7% | Gunner 3% | Skirmisher Dominant Class ---------------- Mutant | -10/Materials Mutant | -10/Mines Mutant | -9/Materials Mutant | -9/Mines Scavenger-Skirmisher | -8/Materials Scavenger-Skirmisher | -8/Storage Scavenger-Gunner | -7/Factory Skirmisher | -7/Waste Tank | -7/Factory Tank | -7/Lower Caves Tank | -7/Lower Caves Mutant | -7/Data Miner Tank | -6/Proximity Caves Gunner | -6/Factory Scavenger-Tank | -6/Waste Scavenger-Tank | -6/Factory Scavenger-Skirmisher | -5/Factory Resources | -11 -10 -10 -9 -9 -8 -8 -7 -7 -7 -7 -7 -7 -6 -6 -6 -6 -5 ----------- Run | Yrd Mat Min Mat Min Mat Sto Fac Was Fac Low Low Dat Pro Fac Was Fac Fac Matter Collected 6987 | 297 68 131 406 40 163 443 1178 583 482 90 177 . 389 1094 235 429 782 Remotely . | . . . . . . . . . . . . . . . . . . Salvage Created 12844 | 172 158 . 1246 192 383 1334 1984 1185 601 9 269 . 354 2771 304 942 940 Parts 528 | 11 18 . 77 10 23 65 84 1 38 . 2 . 10 85 8 47 49 Haulers Intercepted 13 | . . . 2 . 1 2 4 . 2 . . . . 2 . . . Recyclers Shooed 16 | . . . 3 . . . 1 . 1 . . . . 8 . 1 2 Parts Field Recycled . | . . . . . . . . . . . . . . . . . . Retrieved Matter . | . . . . . . . . . . . . . . . . . . Parts Self-Destructed 16 | . . . . . . . . . . . . . 16 . . . . Prevented . | . . . . . . . . . . . . . . . . . . Kills | -11 -10 -10 -9 -9 -8 -8 -7 -7 -7 -7 -7 -7 -6 -6 -6 -6 -5 ------- Run | Yrd Mat Min Mat Min Mat Sto Fac Was Fac Low Low Dat Pro Fac Was Fac Fac Combat Hostiles Destroyed 180 | . 11 . 20 6 5 25 25 6 10 . 2 . 10 31 . 15 14 Guns 66 | . 3 . 14 . . 6 15 1 6 . . . 3 8 . 6 4 Cannons 67 | . . . 3 6 5 17 6 . 4 . 2 . 4 6 . 9 5 AOE 37 | . 8 . 3 . . 2 . 5 . . . . 3 13 . . 3 Classes Destroyed 22 | 3 4 . 3 1 1 2 2 1 . . 2 . 1 2 . . . Worker 17 | 2 . . 2 . . . 6 . 4 . . . . 1 . . 2 Builder 16 | . . . 1 . 1 2 1 . 1 . . . . 1 . 1 8 Tunneler 3 | 2 . . 1 . . . . . . . . . . . . . . Hauler 13 | . . . 2 . 1 2 4 . 2 . . . . 2 . . . Recycler 23 | 1 . . 3 . 1 1 5 . 1 . . . . 8 . 1 2 Mechanic 1 | . . . . . . 1 . . . . . . . . . . . Operator 4 | . 1 . 1 . . . 1 . . . . . . . . 1 . Watcher 13 | . 1 . 3 . 1 1 3 . 2 . . . . . . 2 . Swarmer 37 | . 6 . 6 3 . 6 1 . 4 . . . 1 . . 4 6 Cutter 3 | . . . . . 2 . . . . . . . . . . . 1 Saboteur 1 | . . . . . . . . . . . . . 1 . . . . Grunt 72 | . 5 . 10 1 1 11 13 . 4 . . . 5 18 . 2 2 Brawler 4 | . . . . . . 1 . . . . . . . 3 . . . Duelist 6 | . . . . 2 . 1 . . . . . . 1 2 . . . Protector 2 | . . . . . . . . . . . . . . 2 . . . Sentry 21 | . . . 4 . 2 6 5 . . . . . 1 1 . 1 1 Hunter 8 | . . . . . . . 1 . 1 . . . . 2 . 4 . Programmer 17 | . . . . . . . 5 . 1 . . . 1 2 . 4 4 Heavy 1 | . . . . . . . . . . . . . . 1 . . . Behemoth 1 | . . . . . . . . . . . 1 . . . . . . Compactor 6 | . . . . . . . . 6 . . . . . . . . . Decomposer 1 | . . . . . . . . . . 1 . . . . . . . Packrat 2 | . . . . . . . . . . . 2 . . . . . . Mutant 1 | . . . . . . . . . . . 1 . . . . . . Best Kill Streak 11 | 3 5 . 11 3 3 7 7 3 6 . 1 . 4 11 . 9 7 Combat Bots Only 10 | . 5 . 4 3 2 6 5 3 2 . 1 . 4 10 . 8 4 Max Kills in Single Turn 3 | 1 3 . 2 1 1 2 2 2 2 1 1 . 1 2 . 1 3 Gunslinging . | . . . . . . . . . . . . . . . . . . Exploded 3 | . 3 . 2 . . 1 . 2 . . . . 1 1 . . 1 Melee . | . . . . . . . . . . . . . . . . . . Uniques/NPCs Destroyed . | . . . . . . . . . . . . . . . . . . Combat | -11 -10 -10 -9 -9 -8 -8 -7 -7 -7 -7 -7 -7 -6 -6 -6 -6 -5 -------- Run | Yrd Mat Min Mat Min Mat Sto Fac Was Fac Low Low Dat Pro Fac Was Fac Fac Hostile Shots Fired 1523 | . 54 13 108 24 30 303 251 1 19 . 11 . 61 296 . 153 199 Missed 469 | . 14 3 41 12 10 95 96 . 5 . 6 . 17 71 . 35 64 Hits 1054 | . 40 10 67 12 20 208 155 1 14 . 5 . 44 225 . 118 135 Melee 36 | . . . . 1 3 1 . 1 . . . . 2 19 . . 9 Projectile 1018 | . 40 10 67 11 17 207 155 . 14 . 5 . 42 206 . 118 126 AOE 16 | . . 11 . . 2 . . . 1 . . . . . . . 2 Critical Strikes 58 | . . . 4 . 2 6 5 . 1 . . . 2 20 . 3 15 Part Disruptions 2 | . . . . . . . . . . . . . . . . 1 1 Damage Taken 18806 | . 499 491 875 142 294 2724 1852 358 489 . 112 . 1119 4497 . 1618 3736 Core 3020 | . 99 143 100 21 17 421 255 70 98 . . . 94 533 . 161 1008 Absorbed by Shields 28 | . . . . . . . 28 . . . . . . . . . . Reduced by Siege Mode 34 | . . . . . . . . . . . . . . . . 34 . Redirected to Shielding 143 | . . . . . . . . . . . . . . . . 18 125 Ignored by Resistances 471 | . . . . . . 149 . . 16 . 16 . 18 272 . . . Regen/Repaired (Parts) 204 | . . . . . . . 132 46 26 . . . . . . . . Core Remaining (%) 39 | 100 . 3 . 69 . 20 . . . . . . 26 . . 18 . Volleys Fired 568 | 9 17 . 63 15 24 71 90 24 34 1 11 . 21 83 8 42 55 Largest 4 | 2 2 . 2 2 3 3 4 4 4 4 4 . 4 4 2 4 4 Hottest 429 | 70 95 . 136 136 205 211 271 178 215 215 215 . 399 429 116 275 245 Shots Fired 1681 | 18 31 . 112 30 66 193 288 68 135 4 44 . 68 272 12 163 177 Gun 1007 | 18 20 . 100 . 4 56 254 24 101 2 22 . 38 192 12 96 68 Cannon 585 | . . . 12 30 62 134 33 . 34 2 22 . 23 57 . 67 109 Launcher 89 | . 11 . . . . 3 1 44 . . . . 7 23 . . . Special . | . . . . . . . . . . . . . . . . . . Kinetic 639 | 9 3 . 42 . 4 56 101 . 73 2 22 . 44 115 8 69 91 Thermal 848 | 9 17 . 12 30 49 132 180 24 62 2 22 . 20 117 4 94 74 Explosive 63 | . 11 . . . . 3 1 44 . . . . 4 . . . . Electromagnetic 131 | . . . 58 . 13 2 6 . . . . . . 40 . . 12 Robot Hit Streak 20 | 7 9 . 13 11 7 9 20 14 14 4 8 . 5 20 13 8 13 Robot Miss Streak 10 | 2 3 . 5 2 4 4 3 2 4 1 1 . 4 5 1 4 10 Penetration Max 2 | . . . . . . . . . . . . . . . . 2 . Secondary Targets 8 | . . . 4 . . . 1 . . . . . . 3 . . . Max Gunslinging Chain 1 | . . . 1 . . . 1 . . . . . . 1 . . . Shots Hit Robots 944 | 11 20 . 77 17 32 116 200 27 55 3 24 . 36 170 8 75 73 Core Hits 479 | 6 17 1 47 8 12 50 71 22 25 1 10 . 30 102 5 32 40 Critical Kills 1 | . . . . . . . . . . . . . . . . . 1 Critical Parts Destroyed 4 | . . . . . . . . . . . . . . 1 . 3 . Critical Strikes 57 | 1 1 . . . . . 29 1 5 1 1 . 1 6 . 8 3 Burn 40 | 1 1 . . . . . 25 1 3 1 1 . . 3 . 4 . Meltdown 1 | . . . . . . . . . . . . . . . . . 1 Destroy 4 | . . . . . . . . . . . . . . 1 . 3 . Blast 12 | . . . . . . . 4 . 2 . . . 1 2 . 1 2 Melee Attacks . | . . . . . . . . . . . . . . . . . . Impact . | . . . . . . . . . . . . . . . . . . Slashing . | . . . . . . . . . . . . . . . . . . Piercing . | . . . . . . . . . . . . . . . . . . Sneak Attacks . | . . . . . . . . . . . . . . . . . . Combat Hostiles . | . . . . . . . . . . . . . . . . . . Follow-up Attacks . | . . . . . . . . . . . . . . . . . . Damage Inflicted 30100 | 137 997 21 1559 351 840 2910 4600 3880 1279 66 611 . 1827 6399 115 1817 2691 Guns 11433 | 137 169 . 1090 . 18 615 3469 220 820 17 311 . 377 2660 115 895 520 Cannons 9287 | . . . 162 351 822 2003 1058 . 308 49 300 . 271 1454 . 922 1587 Explosions 9341 | . 828 . 300 . . 292 73 3660 140 . . . 1179 2285 . . 584 Melee . | . . . . . . . . . . . . . . . . . . Ramming 39 | . . 21 7 . . . . . 11 . . . . . . . . Kinetic 7761 | 61 14 . 330 . 18 615 1831 . 567 49 300 . 493 2068 46 419 950 Thermal 12935 | 76 329 . 462 351 544 1935 2664 220 561 17 311 . 629 2650 69 1398 719 Explosive 6047 | . 654 . . . . 292 12 3660 140 . . . 705 . . . 584 Electromagnetic 3318 | . . . 760 . 278 68 93 . . . . . . 1681 . . 438 Impact . | . . . . . . . . . . . . . . . . . . Slashing . | . . . . . . . . . . . . . . . . . . Piercing . | . . . . . . . . . . . . . . . . . . Highest Corruption 30 | . . . . . . . 5 2 5 5 5 5 5 . . 2 30 Average Corruption 3 | . . . . . . . 2 2 4 5 5 5 5 . . 1 5 Corruption Purged 4 | . . . . . . . 4 . . . . . . . . . . Corruption Blocked . | . . . . . . . . . . . . . . . . . . Effects 159 | . . . . . . . 35 8 28 9 15 3 28 . . 7 26 Message Errors 41 | . . . . . . . 8 1 8 3 3 1 8 . . 1 8 Matter Fused 27 | . . . . . . . 4 1 5 1 5 . 5 . . 1 5 Heat Flow Errors 16 | . . . . . . . 3 2 6 1 1 1 2 . . . . Energy Discharges 25 | . . . . . . . 8 1 3 2 4 . 2 . . 1 4 Parts Rejected 1 | . . . . . . . . . . . . . . . . . 1 Parts Fused 5 | . . . . . . . 1 . . 1 1 . 2 . . . . Data Loss (minor) 19 | . . . . . . . 3 3 4 1 1 1 5 . . . 1 Data Loss (major) 5 | . . . . . . . 1 . 1 . . . . . . 1 2 Misfires 5 | . . . . . . . 2 . . . . . 2 . . 1 . Alerts 7 | . . . . . . . 3 . . . . . . . . . 4 Misdirections 1 | . . . . . . . . . . . . . . . . . 1 Weapon Failures 7 | . . . . . . . 2 . 1 . . . 2 . . 2 . Overload Shots . | . . . . . . . . . . . . . . . . . . Overflow Damage 585 | . 40 . 6 . 26 56 188 4 61 5 32 . . 134 . . 33 Projectiles 417 | . . . . . 26 50 188 . 16 5 32 . . 67 . . 33 Explosions 168 | . 40 . 6 . . 6 . 4 45 . . . . 67 . . . Melee . | . . . . . . . . . . . . . . . . . . Knockbacks 34 | . . . . . . . 8 . 1 1 1 . 2 12 . 4 5 Impact . | . . . . . . . . . . . . . . . . . . Kinetic 31 | . . . . . . . 7 . 1 1 1 . 2 11 . 4 4 Secondary 3 | . . . . . . . 1 . . . . . . 1 . . 1 Self-Inflicted Damage 1168 | . 110 . 85 . . 77 22 309 5 . . . 119 113 . . 328 Shots 32 | . 6 . 2 . . 2 1 9 . . . . 2 5 . . 5 Rammed 4 | . . 3 . . . . . . 1 . . . . . . . . Targets Rammed 5 | . . 3 1 . . . . . 1 . . . . . . . . Kicked 1 | . . . 1 . . . . . . . . . . . . . . Crushed . | . . . . . . . . . . . . . . . . . . Highest Temperature 450 | 36 179 . 310 192 395 244 381 154 217 228 161 236 450 374 . 399 390 Average Temperature 87 | 13 58 . 96 72 86 78 78 50 55 88 71 138 116 122 . 104 101 Received Heat Transfer 4434 | . 99 . 318 30 45 1143 634 . 69 . 44 . 328 1421 . 54 249 Effects 19 | . . . . . . . 1 . . . . . 3 9 . 1 5 Shutdowns 6 | . . . . . . . 1 . . . . . 1 1 . 1 2 Energy Bleed 5 | . . . . . . . . . . . . . 2 2 . . 1 Interference 7 | . . . . . . . . . . . . . . 5 . . 2 Damage (minor) 1 | . . . . . . . . . . . . . . 1 . . . Siege Activations 1 | . . . . . . . . . . . . . . . . 1 . Total Turns 16 | . . . . . . . . . . . . . . . . 16 . Longest Duration 16 | . . . . . . . . . . . . . . . . 16 . Martial Activations . | . . . . . . . . . . . . . . . . . . Shielding Activations . | . . . . . . . . . . . . . . . . . . Robots Disrupted 1 | . . . 1 . . . . . . . . . . . . . . Combat Hostiles 1 | . . . 1 . . . . . . . . . . . . . . Robots Corrupted 6 | . . . 1 . . . . . . . . . . 4 . . 1 Combat Hostiles 5 | . . . . . . . . . . . . . . 4 . . 1 Parts Fried 14 | . . . 1 . 2 . . . . . . . . 9 . . 2 Impact Corruptions . | . . . . . . . . . . . . . . . . . . Robots Melted 7 | . . . . . . . 5 . . . . . . 1 . . 1 Combat Hostiles 5 | . . . . . . . 4 . . . . . . . . . 1 Parts Melted 55 | . . . 1 4 3 4 22 . 3 . . . . 6 . 11 1 Heat Transferred 24993 | 296 544 . 696 629 962 3256 7046 555 1332 111 629 . 827 4201 111 2582 1216 Parts Sabotaged . | . . . . . . . . . . . . . . . . . . Parts Stolen . | . . . . . . . . . . . . . . . . . . Parts Stripped . | . . . . . . . . . . . . . . . . . . Power Chain Reactions 14 | . . . 5 . . . 1 . . . . . . 8 . . . Alert | -11 -10 -10 -9 -9 -8 -8 -7 -7 -7 -7 -7 -7 -6 -6 -6 -6 -5 ------- Run | Yrd Mat Min Mat Min Mat Sto Fac Was Fac Low Low Dat Pro Fac Was Fac Fac Maximum Alert Level 4 | . 1 . 1 1 . 2 2 1 4 . . . . 3 1 . . Low Security (%) 70 | 100 94 100 85 99 100 44 66 63 26 . . . . 9 64 100 100 Level 1 12 | . 5 . 14 . . 52 24 36 3 . . . . . 35 . . Level 2 6 | . . . . . . 3 9 . 13 . . . . 29 . . . Level 3 9 | . . . . . . . . . 45 . . . . 60 . . . Level 4 1 | . . . . . . . . . 10 . . . . . . . . Level 5 . | . . . . . . . . . . . . . . . . . . High Security . | . . . . . . . . . . . . . . . . . . Max Security . | . . . . . . . . . . . . . . . . . . Peak Influence 1140 | 10 268 101 283 195 45 430 615 255 1140 . . . . 1030 313 191 169 Initial 313 | . . 101 . 105 . 15 191 213 60 . . . . 8 313 7 81 Average 217 | 2 65 31 97 75 9 216 145 178 679 . . . . 725 155 56 77 Influence Increases 8542 | 25 448 . 651 150 218 858 1049 171 1975 . 30 . 282 1549 . 446 690 Destroy 0b10 Robot/C 4240 | . 220 . 400 120 100 500 500 . 780 . 20 . 220 800 . 300 280 Destroy 0b10 Robot/NC 495 | 25 10 . 65 . 20 35 100 . 70 . . . . 85 . 25 60 Destroy Leader 1036 | . 52 . 120 30 34 136 154 . 160 . 10 . 20 176 . 84 60 Allied During Kill 842 | . . . . . . . . . 703 . . . 12 127 . . . Trap Triggered on 0b10 30 | . . . . . . . . . . . . . . . . 10 20 Successful Hack 118 | . 10 . 4 . 33 7 33 . 17 . . . . 7 . 3 4 Select Force Hacks 30 | . 30 . . . . . . . . . . . . . . . . Disable Machine 525 | . 60 . . . 15 60 75 . 165 . . . . 75 . 15 60 Anti-Garrison Action 150 | . . . . . . . . . . . . . . 150 . . . Destroy Structure 626 | . 66 . 17 . 1 30 37 171 65 . . . . 84 . 9 146 Partial Spotted 75 | . . . . . . 60 . . . . . . . . . . 15 Lose Combat Pursuer 375 | . . . 45 . 15 30 150 . 15 . . . 30 45 . . 45 Influence Decreases 8440 | 25 188 260 380 421 181 473 860 696 1010 620 369 92 268 668 884 290 755 Entered New Map 2245 | . . 159 . 166 . 22 231 398 26 390 83 92 . 6 582 4 86 Time Decay 4964 | 25 188 101 360 255 172 261 609 278 474 230 286 . 236 462 302 236 489 Lost Part 682 | . . . 20 . . 180 20 20 . . . . 32 180 . 50 180 Lost Ally 240 | . . . . . . 10 . . 210 . . . . 20 . . . Purge Threat 309 | . . . . . 9 . . . 300 . . . . . . . . Squads Dispatched 69 | . 3 . 3 . 3 8 7 . 13 . . . 2 15 . 10 5 Investigation 14 | . 2 . 2 . 1 1 1 . 3 . . . . 1 . 2 1 Extermination 16 | . . . . . . . 5 . 3 . . . . 2 . 4 2 Reinforcement 16 | . 1 . 1 . 2 2 1 . 3 . . . . 3 . 1 2 Assault 11 | . . . . . . . . . 1 . . . 2 8 . . . Garrison 12 | . . . . . . 5 . . 3 . . . . 1 . 3 . Intercept . | . . . . . . . . . . . . . . . . . . Searches Triggered . | . . . . . . . . . . . . . . . . . . Data Miner Redirects 8 | . . . . . . . . . . . . . . 7 . 1 . Construction Impeded 2 | . . . . . . . . . . . . . . 1 . 1 . Haulers Reinforced 1 | . . . . . . . . . . . . . . 1 . . . Active Scanning Responses . | . . . . . . . . . . . . . . . . . . Cargo Convoy Interrupts . | . . . . . . . . . . . . . . . . . . Stealth | -11 -10 -10 -9 -9 -8 -8 -7 -7 -7 -7 -7 -7 -6 -6 -6 -6 -5 --------- Run | Yrd Mat Min Mat Min Mat Sto Fac Was Fac Low Low Dat Pro Fac Was Fac Fac Distress Signals 18 | . . . 5 . 1 4 . . 4 . . . . 3 . . 1 Communications Jammed . | . . . . . . . . . . . . . . . . . . Distress Signals . | . . . . . . . . . . . . . . . . . . Times Spotted 321 | . 14 3 35 6 14 37 42 6 28 . 2 . 18 71 . 19 26 Peak Tracking Total 11 | . 6 3 5 3 5 11 7 3 4 . 1 . 10 8 . 4 6 Tactical Retreats 20 | . . . 3 . 1 1 5 . 1 . . . 1 5 . . 3 Traps | -11 -10 -10 -9 -9 -8 -8 -7 -7 -7 -7 -7 -7 -6 -6 -6 -6 -5 ------- Run | Yrd Mat Min Mat Min Mat Sto Fac Was Fac Low Low Dat Pro Fac Was Fac Fac Traps Triggered 20 | . . . 1 . . 1 6 . 3 . . . . 2 . . 7 Indirectly 1 | . . . . . . . . . . . . . . 1 . . . Trap Hack Attempts 101 | . . . . . . . . . . . . . . 3 . 87 11 Triggered . | . . . . . . . . . . . . . . . . . . Disarmed 5 | . 5 . . . . . . . . . . . . . . . . Reprogrammed 7 | . . . . . . . . . . . . . . . . 5 2 Reused 3 | . . . . . . . . . . . . . . . . 1 2 Traps Extracted 6 | . . . . . . . . . . . . . . . . 5 1 Installed 5 | . . . . . . . . . . . . . . . . 1 4 Triggered 3 | . . . . . . . . . . . . . . . . 1 2 Most Traps Carried 5 | . . . . . . . . . . . . . . . . 5 4 Time Bombs Activated 3 | . . . . . . . . . . . . . . 3 . . . Exploded 3 | . . . . . . . . . . . . . . 3 . . . Machines | -11 -10 -10 -9 -9 -8 -8 -7 -7 -7 -7 -7 -7 -6 -6 -6 -6 -5 ---------- Run | Yrd Mat Min Mat Min Mat Sto Fac Was Fac Low Low Dat Pro Fac Was Fac Fac Machines Disabled 37 | . 4 . . . 1 4 5 . 11 . 1 . . 6 . 1 4 Max in Single Turn 3 | . 2 . . . 1 1 3 . 2 . 1 . . 1 . 1 1 Garrison Access 3 | . . . . . . . 2 . . . . . . 1 . . . Machines Repaired . | . . . . . . . . . . . . . . . . . . Machines Dismantled . | . . . . . . . . . . . . . . . . . . Machines Sabotaged . | . . . . . . . . . . . . . . . . . . Overloaded Fab Kills . | . . . . . . . . . . . . . . . . . . Hacking | -11 -10 -10 -9 -9 -8 -8 -7 -7 -7 -7 -7 -7 -6 -6 -6 -6 -5 --------- Run | Yrd Mat Min Mat Min Mat Sto Fac Was Fac Low Low Dat Pro Fac Was Fac Fac Machines Accessed 51 | . 4 . 4 . 5 3 12 . 7 . . 4 . 3 . 5 4 Terminals 24 | . 3 . 3 . 4 2 3 . 5 . . . . 2 . 1 1 Fabricators 5 | . . . . . . . 2 . 1 . . . . 1 . 1 . Repair Stations 5 | . . . 1 . . . 2 . . . . . . . . 2 . Recycling Units 5 | . 1 . . . . . 2 . . . . . . . . . 2 Scanalyzers 5 | . . . . . 1 . 1 . 1 . . . . . . 1 1 Garrison Access 3 | . . . . . . 1 2 . . . . . . . . . . Total Hacks 150 | . 12 . 10 . 17 5 26 . 18 . . 28 . 8 . 13 13 Successful 84 | . 7 . 4 . 9 2 12 . 8 . . 28 . 4 . 2 8 Failed 66 | . 5 . 6 . 8 3 14 . 10 . . . . 4 . 11 5 Catastrophic 13 | . 1 . . . . . 3 . 3 . . . . 2 . 2 2 Database Lockouts . | . . . . . . . . . . . . . . . . . . Manual 45 | . 7 . 5 . 13 1 11 . 4 . . . . 1 . 2 1 Terminals 69 | . 10 . 7 . 14 3 9 . 13 . . . . 5 . 6 2 Fabricators 13 | . . . . . . . 4 . 3 . . . . 3 . 3 . Repair Stations 11 | . . . 3 . . . 5 . . . . . . . . 3 . Recycling Units 6 | . 2 . . . . . 2 . . . . . . . . . 2 Scanalyzers 16 | . . . . . 3 . 1 . 2 . . . . . . 1 9 Garrison Access 7 | . . . . . . 2 5 . . . . . . . . . . Terminal Hacks 48 | . 4 . 2 . 5 2 2 . 4 . . 28 . 1 . . . Record 11 | . . . . . . . . . . . . 11 . . . . . Part Schematic 10 | . . . . . 1 . 1 . . . . 8 . . . . . Robot Schematic 7 | . 1 . . . . . . . . . . 6 . . . . . Robot Analysis 2 | . . . . . 2 . . . . . . . . . . . . Prototype ID Bank 3 | . . . . . . . . . . . . 3 . . . . . Open Door 2 | . . . . . . 2 . . . . . . . . . . . Open DSF 1 | . . . . . . . . . 1 . . . . . . . . Branch Access Points 4 | . . . 1 . 1 . . . 1 . . . . 1 . . . Unreport Threat 3 | . . . . . 1 . . . 2 . . . . . . . . Locate Traps 1 | . . . 1 . . . . . . . . . . . . . . Disarm Traps 1 | . 1 . . . . . . . . . . . . . . . . Dispatch Records 1 | . . . . . . . 1 . . . . . . . . . . Recall Investigation 1 | . 1 . . . . . . . . . . . . . . . . Hauler Manifests 1 | . 1 . . . . . . . . . . . . . . . . Fabricator Hacks 7 | . . . . . . . 1 . 2 . . . . 2 . 2 . Load Schematic 4 | . . . . . . . 1 . 1 . . . . 1 . 1 . Build 3 | . . . . . . . . . 1 . . . . 1 . 1 . Repair Station Hacks 4 | . . . 1 . . . 3 . . . . . . . . . . Scan Component 3 | . . . 1 . . . 2 . . . . . . . . . . Repair 1 | . . . . . . . 1 . . . . . . . . . . Recycling Unit Hacks 1 | . . . . . . . . . . . . . . . . . 1 Retrieve Matter 1 | . . . . . . . . . . . . . . . . . 1 Scanalyzer 10 | . . . . . 1 . . . 2 . . . . . . . 7 Insert Component 6 | . . . . . 1 . . . 1 . . . . . . . 4 Analyze 4 | . . . . . . . . . 1 . . . . . . . 3 Garrison Access Hacks 2 | . . . . . . . 2 . . . . . . . . . . Seal Access 2 | . . . . . . . 2 . . . . . . . . . . Unauthorized Hacks 12 | . 3 . 1 . 3 . 4 . . . . . . 1 . . . Terminals 8 | . 2 . 1 . 3 . 2 . . . . . . . . . . Track 2 | . 1 . . . . . 1 . . . . . . . . . . Botnet 6 | . 1 . 1 . 3 . 1 . . . . . . . . . . Fabricators 2 | . . . . . . . 1 . . . . . . 1 . . . Prioritize 1 | . . . . . . . . . . . . . . 1 . . . Liberate 1 | . . . . . . . 1 . . . . . . . . . . Repair Stations 1 | . . . . . . . 1 . . . . . . . . . . Patch 1 | . . . . . . . 1 . . . . . . . . . . Recycling Units 1 | . 1 . . . . . . . . . . . . . . . . Tunnel 1 | . 1 . . . . . . . . . . . . . . . . Scanalyzers . | . . . . . . . . . . . . . . . . . . Garrison Access . | . . . . . . . . . . . . . . . . . . Data Cores Recovered 1 | . . . . . . . . . . . . . . . . 1 . Used . | . . . . . . . . . . . . . . . . . . Hacking Detections 38 | . 3 . 4 . 5 2 9 . 6 . . . . 2 . 5 2 Full Trace Events 10 | . 1 . 1 . 1 1 . . 3 . . . . . . 2 1 Feedback Events 1 | . . . . . . . . . . . . . . . . . 1 Corruption 1 | . . . . . . . . . . . . . . . . . 1 Feedback Blocked . | . . . . . . . . . . . . . . . . . . Robot Schematics Acquired 7 | . 1 . . . . . . . . . . 6 . . . . . Robots Built . | . . . . . . . . . . . . . . . . . . Authchips . | . . . . . . . . . . . . . . . . . . Time . | . . . . . . . . . . . . . . . . . . Total Robot Build Rating . | . . . . . . . . . . . . . . . . . . Part Schematics Acquired 14 | . . . . . 1 . 1 . 1 . . 8 . . . . 3 Parts Built 6 | . . . . . . . . . 2 . . . . 2 . 2 . Authchips 1 | . . . . . . . . . . . . . . 1 . . . Time 166 | . . . . . . . . . 62 . . . . 42 . 62 . Total Part Build Rating 16 | . . . . . . . . . 4 . . . . 8 . 4 . Parts Repaired 1 | . . . . . . . 1 . . . . . . . . . . Time 26 | . . . . . . . 26 . . . . . . . . . . Parts Recycled . | . . . . . . . . . . . . . . . . . . Recycled Matter . | . . . . . . . . . . . . . . . . . . Retrieved Matter 102 | . . . . . . . . . . . . . . . . . 102 Retrieved Components . | . . . . . . . . . . . . . . . . . . Parts Scanalyzed 5 | . . . . . 1 . . . 1 . . . . . . . 3 Part Schematics Acquired 4 | . . . . . . . . . 1 . . . . . . . 3 Parts Damaged 1 | . . . . . 1 . . . . . . . . . . . . Bothacking | -11 -10 -10 -9 -9 -8 -8 -7 -7 -7 -7 -7 -7 -6 -6 -6 -6 -5 ------------ Run | Yrd Mat Min Mat Min Mat Sto Fac Was Fac Low Low Dat Pro Fac Was Fac Fac Used RIF Installer . | . . . . . . . . . . . . . . . . . . Robots Hacked . | . . . . . . . . . . . . . . . . . . Non-combat . | . . . . . . . . . . . . . . . . . . Combat . | . . . . . . . . . . . . . . . . . . Robot Hacks Applied . | . . . . . . . . . . . . . . . . . . Relay Couplers Released 2 | . . . . . . . . . . . . . . 2 . . . Machine Destruction 2 | . . . . . . . . . . . . . . 2 . . . Fabnet Peak Effective % . | . . . . . . . . . . . . . . . . . . Robots Rewired . | . . . . . . . . . . . . . . . . . . Allies Hacked . | . . . . . . . . . . . . . . . . . . Hacks Repelled . | . . . . . . . . . . . . . . . . . . Allies | -11 -10 -10 -9 -9 -8 -8 -7 -7 -7 -7 -7 -7 -6 -6 -6 -6 -5 -------- Run | Yrd Mat Min Mat Min Mat Sto Fac Was Fac Low Low Dat Pro Fac Was Fac Fac Total Allies 20 | . . . . . . . . 19 . . . . 1 . . . . Largest Group 19 | . . . . . . . . 19 19 . . . 1 1 . . . Highest-Rated Group 475 | . . . . . . . . 475 475 . . . 96 96 . . . Highest-Rated Ally 96 | . . . . . . . . 35 35 . . . 96 96 . . . Total Orders 1 | . . . . . . 1 . . . . . . . . . . . EXPLORE 1 | . . . . . . 1 . . . . . . . . . . . Ally Attacks 231 | . . . . . . . . . 184 . . . 9 38 . . . Total Damage 5611 | . . . . . . . . . 3675 . . . 209 1727 . . . Kills 50 | . . . . . . . . . 35 . . . 1 14 . . . Allies Corrupted 2 | . . . . . . . . . 2 . . . . . . . . Allies Melted . | . . . . . . . . . . . . . . . . . . Intel | -11 -10 -10 -9 -9 -8 -8 -7 -7 -7 -7 -7 -7 -6 -6 -6 -6 -5 ------- Run | Yrd Mat Min Mat Min Mat Sto Fac Was Fac Low Low Dat Pro Fac Was Fac Fac Active Infowar (turns) 6075 | 56 412 357 914 . 466 259 175 443 . . . . . 101 671 1413 808 Optics 1222 | . . . . . . . . . . . . . . 93 671 458 . Sensors 1975 | . . . . . . . 34 443 . . . . . . . 956 542 Terrain 487 | 56 165 . . . . . . . . . . . . . . . 266 Structural 1518 | . 247 357 914 . . . . . . . . . . . . . . T.N.C. 866 | . . . . . 466 259 141 . . . . . . . . . . ECM 127 | . . . . . . . . . . . . . . 88 . 39 . Robot Analysis Total 2 | . . . . . 2 . . . . . . . . . . . . Derelict Logs Recovered 6 | . . 1 . 1 . . . . . 1 1 . 2 . . . . Drone Launches 4 | . . . . . . 4 . . . . . . . . . . . Drone Recoveries . | . . . . . . . . . . . . . . . . . . Exploration | -11 -10 -10 -9 -9 -8 -8 -7 -7 -7 -7 -7 -7 -6 -6 -6 -6 -5 ------------- Run | Yrd Mat Min Mat Min Mat Sto Fac Was Fac Low Low Dat Pro Fac Was Fac Fac Turns Passed 14822 | 123 412 357 1067 658 524 625 2609 608 1208 490 639 126 804 1170 671 1413 1318 Spaces Moved 8499 | 52 212 222 455 277 236 312 1132 417 832 374 460 103 551 967 506 719 672 Core 718 | 3 . . . . . . . . . . . . . 596 49 . 70 Treads 879 | 49 212 176 79 . 141 155 62 . . . . . . . . 5 . Legs 1348 | . . 46 329 277 95 13 329 . . . . . . 5 . . 254 Wheels 5392 | . . . 47 . . . 741 417 832 374 460 103 551 366 457 714 330 Hover 14 | . . . . . . . . . . . . . . . . . 14 Flight 148 | . . . . . . 144 . . . . . . . . . . 4 Fastest Speed 35 | 50 160 120 100 190 160 35 115 115 115 115 130 115 115 50 50 130 40 Average Speed 133 | 153 160 152 165 190 172 107 170 115 123 128 130 116 129 80 120 142 115 Slowest Speed 330 | 160 160 240 260 190 190 305 330 115 130 130 130 130 130 260 145 240 270 Overloaded Moves . | . . . . . . . . . . . . . . . . . . Propulsion Burnouts . | . . . . . . . . . . . . . . . . . . Robots Hopped . | . . . . . . . . . . . . . . . . . . Potential Cave-ins . | . . . . . . . . . . . . . . . . . . Cave-ins Triggered 1 | . . . . . . . . . . . . . . . . . 1 Exploration Rate (%) 47 | 4 45 61 39 53 27 61 32 95 35 59 57 69 77 22 96 14 12 Regions Visited 17 Branch Regions 7 Pre-discovered Areas 5 | . 1 1 . . . . . . . . . 1 2 . . . . Known Exits Taken 9 | . . . 1 . 1 1 . . 1 1 1 1 1 . . 1 . Unknown Exits Taken 4 | 1 1 1 . 1 . . . . . . . . . . . . . Scrap Searched 9 | . . 1 . 2 . . . . . 1 3 . 2 . . . . Spaces Dug 32 | . . . . . . 1 5 24 1 . . . . . . 1 . Terrain Destroyed 743 | . 78 . 15 . 1 25 31 370 11 . 2 . 59 48 . 4 99 Melee . | . . . . . . . . . . . . . . . . . . Projectile 77 | . . . . . 1 4 13 . 7 . 2 . 3 17 . 3 27 AOE 665 | . 78 . 15 . . 21 18 370 4 . . . 56 31 . . 72 Terrain Rammed . | . . . . . . . . . . . . . . . . . . Walls Destroyed . | . . . . . . . . . . . . . . . . . . Machines Disabled . | . . . . . . . . . . . . . . . . . . Actions | -11 -10 -10 -9 -9 -8 -8 -7 -7 -7 -7 -7 -7 -6 -6 -6 -6 -5 --------- Run | Yrd Mat Min Mat Min Mat Sto Fac Was Fac Low Low Dat Pro Fac Was Fac Fac Total 10839 | 74 256 242 659 380 307 466 1635 486 934 380 474 110 594 1193 556 1000 1093 Wait 878 | . 3 5 65 78 3 27 254 23 37 . . . 1 9 1 96 276 Move 8484 | 51 211 221 454 276 235 311 1132 416 831 373 459 102 550 967 505 718 672 Hop . | . . . . . . . . . . . . . . . . . . Pick Up 221 | 7 6 3 23 4 14 7 56 8 8 . 2 . 8 26 18 16 15 Fast Attach 111 | 7 3 . 11 . 3 6 18 2 4 2 . 3 2 20 10 5 15 Attach 99 | . 1 3 6 . 2 16 10 5 . 1 1 1 6 25 3 7 12 Detach 22 | . . 1 2 . . . 4 1 . . . . 1 7 3 1 2 Swap 101 | . 5 1 12 4 10 8 16 1 5 . . . 2 13 . 15 9 Drop 235 | . 10 5 22 3 16 14 55 6 14 3 1 4 3 37 8 12 22 Fire 568 | 9 17 . 63 15 24 71 90 24 34 1 11 . 21 83 8 42 55 Melee . | . . . . . . . . . . . . . . . . . . Ram 1 | . . . . . . . . . 1 . . . . . . . . Kick 1 | . . . 1 . . . . . . . . . . . . . . Crush 3 | . . 3 . . . . . . . . . . . . . . . Escape Stasis . | . . . . . . . . . . . . . . . . . . Rewire 4 | . . . . . . 4 . . . . . . . . . . . Trap 109 | . . . . . . . . . . . . . . 6 . 88 15 Miscellaneous 2 | . . . . . . 2 . . . . . . . . . . . Route ------- -11/Scrapyard -10/Materials (discovered 2 exits: *Mat / [*Min]) -10/Mines -9/Materials (discovered 2 exits: *Min x2) -9/Mines -8/Materials (discovered 2 exits: Fac / *Sto) -8/Storage -7/Factory (discovered 2 exits: *Fac x2) -7/Waste -7/Factory (discovered 5 exits: *Fac x3 / *Low x2) -7/Lower Caves -7/Lower Caves (discovered 2 exits: Fac / *Dat) -7/Data Miner -6/Proximity Caves -6/Factory (discovered 2 exits: Low x2) -6/Waste -6/Factory -5/Factory History --------- Turn | Location | Event 4 | -11/Scrapyard | Discovered new exit (range 16) 124 | -11/Scrapyard | Entered Materials 312 | -10/Materials | Discovered new exit (range 8) 317 | -10/Materials | Build established: Mutant 463 | -10/Materials | Discovered new exit (range 15) 536 | -10/Materials | Entered Mines 792 | -10/Mines | Assembled infested the area 797 | -10/Mines | Assisted by a Guerilla fighting off Assembled 830 | -10/Mines | Core integrity fell below 50% 836 | -10/Mines | Core integrity fell below 20% 864 | -10/Mines | Lost 6 parts (1p3n2w) 864 | -10/Mines | Discovered new exit (range 7) 893 | -10/Mines | Entered Materials 893 | -9/Materials | Evolved 2 slots: Propulsion x1, Utility x1 1174 | -9/Materials | Identified exit to Mines 1570 | -9/Materials | Build established: Scavenger-Mutant 1960 | -9/Materials | Entered Mines 1996 | -9/Mines | Build established: Mutant 2012 | -9/Mines | Met a Derelict bent on vengeance 2227 | -9/Mines | Learned 4 Materials zone layouts 2465 | -9/Mines | Discovered new exit (range 10) 2618 | -9/Mines | Entered Materials 2618 | -8/Materials | Evolved 2 slots: Propulsion x1, Weapon x1 2619 | -8/Materials | Identified exit to Factory 2869 | -8/Materials | Identified exit to Storage 2919 | -8/Materials | Build established: Scavenger-Skirmisher 3142 | -8/Materials | Entered Storage 3277 | -8/Storage | Garrison activated, responded to threat 3651 | -8/Storage | Garrison activated, responded to threat 3689 | -8/Storage | Core integrity fell below 50% 3728 | -8/Storage | Lost 16 parts (2p7n3u4w) 3751 | -8/Storage | Discovered exit to Factory (range 7) 3767 | -8/Storage | Entered Factory 3767 | -7/Factory | Evolved 2 slots: Utility x1, Weapon x1 4138 | -7/Factory | Build established: Scavenger-Gunner 4139 | -7/Factory | Discovered new exit (range 5) 5128 | -7/Factory | Repaired Lgt. Treads 5785 | -7/Factory | Allied Derelicts emerged from ambush trap array 6279 | -7/Factory | Discovered new exit (range 2) 6341 | -7/Factory | Identified exit to Factory 6376 | -7/Factory | Sucked down chute 6376 | -7/Factory | Entered Waste 6387 | -7/Waste | Spotted C-40 Crusher 6440 | -7/Waste | Destroyed C-40 Crusher 6468 | -7/Waste | Spotted C-40 Crusher 6478 | -7/Waste | Destroyed C-40 Crusher 6480 | -7/Waste | Spotted C-40 Crusher 6482 | -7/Waste | Destroyed C-40 Crusher 6491 | -7/Waste | Spotted C-40 Crusher 6494 | -7/Waste | Spotted C-40 Crusher 6506 | -7/Waste | Spotted C-40 Crusher 6524 | -7/Waste | Crushed by Compactor (1 part destroyed, 1 dropped) 6551 | -7/Waste | Destroyed C-40 Crusher 6559 | -7/Waste | Destroyed C-40 Crusher 6559 | -7/Waste | Destroyed C-40 Crusher 6641 | -7/Waste | Build established: Skirmisher 6748 | -7/Waste | Discovered new exit (range 14) 6791 | -7/Waste | Warlord forces began an assault 6969 | -7/Waste | Identified exit to Factory 6984 | -7/Waste | Entered Factory 6984 | -7/Factory | Accompanied by 19 allies 6993 | -7/Factory | Identified exit to DSF 7127 | -7/Factory | Discovered exit to Factory (range 4) 7169 | -7/Factory | Build established: Tank 7194 | -7/Factory | Fabricated Trap Extractor (x2) 7273 | -7/Factory | Core integrity fell below 50% 7324 | -7/Factory | Lost 4 allies 7345 | -7/Factory | P-60 Hacker assimilated allied 2L-Z7B(g) 7592 | -7/Factory | Garrison activated, responded to threat 7644 | -7/Factory | P-60 Hacker assimilated allied 63-40K(g) 7720 | -7/Factory | Discovered exit to Factory (range 14) 7834 | -7/Factory | Discovered exit to Factory (range 15) 7944 | -7/Factory | Lost 3 allies 8046 | -7/Factory | Identified exit to Lower Caves 8178 | -7/Factory | P-60 Hacker assimilated allied 06-I3F(m) 8184 | -7/Factory | First assault squad dispatched 8192 | -7/Factory | Entered Lower Caves 8334 | -7/Lower Caves | Learned Factory trap positions 8660 | -7/Lower Caves | Discovered new exit (range 13) 8680 | -7/Lower Caves | Identified exit to Lower Caves 8682 | -7/Lower Caves | Entered another Lower Caves area 8766 | -7/Lower Caves | Spotted B-75 Beast 8774 | -7/Lower Caves | Destroyed B-75 Beast 9070 | -7/Lower Caves | Attacked by a delusional Derelict stockpiling parts 9306 | -7/Lower Caves | Discovered new exit (range 11) 9320 | -7/Lower Caves | Identified exit to Data Miner 9321 | -7/Lower Caves | Entered Data Miner 9324 | -7/Data Miner | Discovered new exit (range 6) 9341 | -7/Data Miner | Identified exit to Proximity Caves 9356 | -7/Data Miner | Met Data Miner 9376 | -7/Data Miner | Learned location of Section 7 (-3) 9376 | -7/Data Miner | Acquired the access code to Warlord's prototype stash 9399 | -7/Data Miner | Received God Mode back door access code from Data Miner 9447 | -7/Data Miner | Entered Proximity Caves 9555 | -6/Proximity Caves | Attracted the attention of an 0b10 checkpoint 9978 | -6/Proximity Caves | Derelict sapper outpost attacked 10048 | -6/Proximity Caves | Escorted by Enhanced Grunt 10076 | -6/Proximity Caves | Lost 4 parts (4w) 10223 | -6/Proximity Caves | Discovered exit to Factory (range 15) 10251 | -6/Proximity Caves | Entered Factory 10251 | -6/Factory | Accompanied by 1 ally 10251 | -6/Factory | Evolved 2 slots: Power x1, Utility x1 10252 | -6/Factory | Loaded intel: 119 trap records 10299 | -6/Factory | Garrison activated, responded to threat 10633 | -6/Factory | Identified exit to Lower Caves 10770 | -6/Factory | Build established: Gunner 10872 | -6/Factory | Lost 4 parts (2u2w) 10875 | -6/Factory | Destroyed 10 combat bots 10951 | -6/Factory | First assault squad dispatched 10957 | -6/Factory | Destroyed 7 combat bots 10966 | -6/Factory | Incoming assault squad redirected 10969 | -6/Factory | Incoming assault squad redirected 10979 | -6/Factory | Incoming assault squad redirected 11009 | -6/Factory | Lost 3 parts (1p1u1w) 11033 | -6/Factory | Incoming assault squad redirected 11062 | -6/Factory | Lost 6 parts (1p1n2u2w) 11274 | -6/Factory | Build established: Mutant 11314 | -6/Factory | Incoming assault squad redirected 11318 | -6/Factory | Incoming assault squad redirected 11355 | -6/Factory | Fabricated Arm. Huge Wheel? 11364 | -6/Factory | Core integrity fell below 50% 11386 | -6/Factory | Incoming assault squad redirected 11421 | -6/Factory | Manually triggered Chute Trap 11421 | -6/Factory | Sucked down chute 11421 | -6/Factory | Entered Waste 11421 | -6/Waste | The area was eerily silent 11450 | -6/Waste | Found Damper Plating 11586 | -6/Waste | Found Damper Plating 11833 | -6/Waste | Discovered new exit (range 11) 11956 | -6/Waste | Build established: Scavenger-Tank 12090 | -6/Waste | Identified exit to Factory 12092 | -6/Waste | Entered Factory 12523 | -6/Factory | Incoming investigation squad redirected 12566 | -6/Factory | Fabricated Trap Extractor? 12821 | -6/Factory | Build established: Scavenger-Skirmisher 12942 | -6/Factory | Garrison activated, responded to threat 13010 | -6/Factory | Core integrity fell below 20% 13076 | -6/Factory | Destroyed 8 combat bots 13084 | -6/Factory | Lost 5 parts (1p1n3w) 13273 | -6/Factory | Build established: Scavenger-Tank 13405 | -6/Factory | Discovered new exit (range 14) 13423 | -6/Factory | Identified exit to Factory 13505 | -6/Factory | Entered another Factory area 13505 | -5/Factory | Evolved 2 slots: Propulsion x2 14477 | -5/Factory | System corruption reached 10% 14762 | -5/Factory | Crushed by falling debris 14772 | -5/Factory | Core integrity fell below 50% 14797 | -5/Factory | Core integrity fell below 20% 14802 | -5/Factory | System corruption reached 30% 14823 | -5/Factory | Destroyed by Proton Bomb Trap Last Messages --------------- 14800_ Triggered Heavy Explosive Trap. 14800_ An explosion rips through the floor. 14800_ Neutrino Reactor explodes. 14800_ P-70 Sage destroyed. 14801_ Acquired Corrupted Antigrav System. 14801_ Integrated Corrupted Antigrav System (+7). 14803_ Acquired Antigrav System. 14807_ Antigrav System destroyed. 14809_ Critical hit (Burn: +37). 14814_ System corrupted: Energy discharge (-9). 14822_ Acquired 20 matter. 14823_ Triggered Proton Bomb Trap. 14823_ A bubble of electromagnetic force engulfs the area. 14823_ Antigrav System destroyed. 14823_ Proton Bomb Trap short circuited. 14823_ A bubble of electromagnetic force engulfs the area. 14823_ Antigrav System destroyed. Map ----- +----------------------------------------------------+ | # # ##### # | | ### # ## # ## # | | ??## % # ########### | | ???### ## # #?####??### | | ?????###### ###########??#??????? | | ?????????## ###?#?#?????????##??? | | ???????? #####"#### #??#?#??????????????? | | ???????######## ### #?## ###???#?#?????#?????? | | ?????????????# ######### #??#?#?????#??????#?? | | ????????????? ##??#???## #???#?????#???????#?? | | ????????????#?###?#????# #?#??#?#????????????? | | ?????????????#?#?#??#?## ###?????????????????? | | ?????????????? ??? ?# ###################?# | | ???????????????? ??????# # ####"### | | ???????????????????"?"?# # + | | ??????????????????????"# # ######## | | ?????????????????????"?# # #???#### | | ?????????????????????""# # #??????? | | ??????????????????????"# k # #??????? | | ???????????????????????+ + #??????? | | ???????????????????????# # #??????? | | ???????????????????????# # #??????? | | ???????????????????????# # [ #??????? | | ???????????????????????# # #??????? | | ???????????????????????# # #??????? | | ???????????????????????# @ ##############??????? | | ???????????????????????# #???????????????????? | | ???????????????????????# #???????????????????? | | ???????????????????????# #?????????########??? | | ???????????????????????# #?????????# #??? | | ?????????????????#########+##########??# "S #??? | | ?????????????????# #??# """ !#??? | | ?????????????????# #??# "" #??? | | ?????????????????# #??# #### | | ?????????????????# #??# # | | ?????????????????# #??####+### [ | | ?????????????????# #???# # | | ?????????????????# ##### # | | ?????????????????# + + | | ?????????????????#################### # | | ?????????????????# ####### ^ # | | ?????????????????# """ + ^"" # | | ?????????????????# "Y" # "" # | | ?????????????????# """ " " # "T #### | | ?????????????????# """ + "" #??? | | ?????????????????# """ ####+## "" ##??? | | ?????????????????# "" #?? # #???? | | ?????????????????# "" #?? + #???? | | ?????????????????# #?""" #### #???? | | ?????????????????# #?""" #??# #???? | +----------------------------------------------------+ Best States ------------- Heat Dissipation 91 Energy Generation 35 Energy Capacity 540 Matter Stores 300 Matter Capacity 300 Sight Range 22 Robot Scan Range 15 Terrain Scan Range 16 Terrain Scan Density 85 ECM Strength 1 Armor Coverage 600 Resistance: KI 30 Propulsion Shielding 66 Evasion (%) 70 Targeting Accuracy 6 Launcher Accuracy 20 Target Analysis 5 Armor Integrity Analysis 30 Recoil Reduction 4 Offensive Hacking 12 Authchip Count 1 Trap Extractor Capacity 4 Item Schematics ----------------- Trap Extractor | -8/Materials | Hacked Lrg. Storage Unit | -7/Factory | Hacked Arm. Huge Wheel | -7/Factory | Scanalyzed Combat Drone Bay | -7/Data Miner | Free Cld. Aerolev Unit | -7/Data Miner | Free Gravity Neutralizer | -7/Data Miner | Free Lgt. Regenerative Plating | -7/Data Miner | Free Gui. EMP Blaster | -7/Data Miner | Free Nuclear Pulse Array | -7/Data Miner | Free Imp. Kinecellerator | -7/Data Miner | Free Imp. Arc Projector | -7/Data Miner | Free Hrd. Medium Armor Plating | -5/Factory | Scanalyzed Imp. Cooling System | -5/Factory | Scanalyzed VTOL Module | -5/Factory | Scanalyzed Robot Schematics ------------------ M-13 Machinist | -10/Materials | Hacked Y-54 Guardian | -7/Data Miner | Free H-55 Commando | -7/Data Miner | Free G-50 Soldier | -7/Data Miner | Free W-25 Informer | -7/Data Miner | Free E-15 Imp | -7/Data Miner | Free L-41 Fighter | -7/Data Miner | Free Fabricated ------------ Trap Extractor | x2 | -7/Factory Arm. Huge Wheel | x2 | -6/Factory | Authchip Trap Extractor | x2 | -6/Factory Repaired ---------- Lgt. Treads | 55% | -7/Factory Alien Tech Used ----------------- None Achievements -------------- None Challenges ------------ None Game ------ Seed DrainedAluminumParser Manual? 0 Play Time 02:25:06 Cumulative 730.4 hours Start 2025.05.06 @ 22:38:37 End 2025.05.08 @ 00:12:33 Sessions 1 Manual Loads 0 Difficulty Rogue Special Mode None Game No. 164 Rogue 26 Adventurer 138 Explorer 0 Win Type - Total 11 Types 7/0/1/2/0/0/0/0/1/0 Lore% 77 Gallery% 77 Achievement% 76 Wizard Run 0 Options --------- Layout 2 ASCII 0 Keyboard 0 Movement Mouse Keybinds 0 Fullscreen 1 Font 24/Smallcaps Map View 50x49 Zoom Use 10% Tactical HUD 1 Map Filters NONE Filters NONE Steam 1 RUN: ccf19287-305a-45b0-989b-975c9bb853d0